[Event "Early-Titled-Tuesday-Blitz-October-10-2023"]
[Site "Chess.com"]
[Date "2023.10.10"]
[Round "2"]
[White "Kopytkin"]
[Black "Cayse"]
[Result "0-1"]
[WhiteElo "2397"]
[BlackElo "2831"]
[TimeControl "180+1"]
[EndTime "8:16:43 PDT"]
[Termination "Cayse won by resignation"]

1. d4 {[%clk 0:02:54.3]} 1... d5 {[%clk 0:02:59.6]} 2. Bg5 {[%clk 0:02:48.7]}
2... h6 {[%clk 0:02:58]} 3. Bf4 {[%clk 0:02:47.4]} 3... Nf6 {[%clk 0:02:56.7]}
4. e3 {[%clk 0:02:47.7]} 4... c5 {[%clk 0:02:55.9]} 5. c3 {[%clk 0:02:46.9]}
5... Nc6 {[%clk 0:02:56]} 6. Nf3 {[%clk 0:02:42.2]} 6... e6 {[%clk 0:02:55.9]}
7. Nbd2 {[%clk 0:02:40.6]} 7... Bd6 {[%clk 0:02:51.7]} 8. Bd3 {[%clk 0:02:40.1]}
8... O-O {[%clk 0:02:32.4]} 9. O-O {[%clk 0:02:28.3]} 9... b6 {[%clk 0:02:32]}
10. Qe2 {[%clk 0:02:18.9]} 10... Bb7 {[%clk 0:02:30.1]} 11. Rad1 {[%clk
0:02:15.6]} 11... cxd4 {[%clk 0:02:24]} 12. Bxd6 {[%clk 0:02:11]} 12... Qxd6
{[%clk 0:02:23.5]} 13. exd4 {[%clk 0:02:11]} 13... Nd7 {[%clk 0:02:18.3]} 14.
Rfe1 {[%clk 0:01:57.6]} 14... Rae8 {[%clk 0:02:18.1]} 15. Ba6 {[%clk 0:01:14.6]}
15... Bxa6 {[%clk 0:02:13.6]} 16. Qxa6 {[%clk 0:01:14.4]} 16... f6 {[%clk
0:02:13.8]} 17. c4 {[%clk 0:01:10.1]} 17... Nb4 {[%clk 0:02:02.2]} 18. Qa3
{[%clk 0:01:08.3]} 18... a5 {[%clk 0:02:02.1]} 19. Rc1 {[%clk 0:00:59.9]} 19...
Rc8 {[%clk 0:01:58.1]} 20. Qe3 {[%clk 0:00:50.9]} 20... e5 {[%clk 0:01:53]} 21.
a3 {[%clk 0:00:48.1]} 21... Nc6 {[%clk 0:01:33.6]} 22. cxd5 {[%clk 0:00:45]}
22... Qxd5 {[%clk 0:01:33.5]} 23. dxe5 {[%clk 0:00:33.4]} 23... Ncxe5 {[%clk
0:01:32.9]} 24. Nxe5 {[%clk 0:00:30.2]} 24... Nxe5 {[%clk 0:01:33.8]} 25. Qb3
{[%clk 0:00:25]} 25... Qxb3 {[%clk 0:01:32.3]} 26. Nxb3 {[%clk 0:00:25.1]} 26...
Nd3 {[%clk 0:01:32.9]} 27. Rxc8 {[%clk 0:00:24.2]} 27... Rxc8 {[%clk 0:01:33.8]}
28. Rb1 {[%clk 0:00:14.6]} 28... Rc2 {[%clk 0:01:30.1]} 29. Nd4 {[%clk
0:00:13.5]} 29... Rxb2 {[%clk 0:01:23.7]} 30. Rxb2 {[%clk 0:00:13.7]} 30... Nxb2
{[%clk 0:01:24.6]} 31. Kf1 {[%clk 0:00:13.5]} 31... Nc4 {[%clk 0:01:21.9]} 32.
Nc2 {[%clk 0:00:12.6]} 32... Kf7 {[%clk 0:01:21.4]} 33. Ke2 {[%clk 0:00:13]}
33... Ke6 {[%clk 0:01:21.4]} 34. Kd3 {[%clk 0:00:13.3]} 34... Kd5 {[%clk
0:01:21.5]} 35. a4 {[%clk 0:00:13.3]} 35... Nb2+ {[%clk 0:01:20.7]} 36. Kc3
{[%clk 0:00:13.1]} 36... Nxa4+ {[%clk 0:01:21.6]} 37. Kd3 {[%clk 0:00:13.3]}
37... Nc5+ {[%clk 0:01:21.6]} 38. Kc3 {[%clk 0:00:13.7]} 38... b5 {[%clk
0:01:22]} 39. Ne3+ {[%clk 0:00:11.7]} 39... Ke5 {[%clk 0:01:20.3]} 40. Kb2
{[%clk 0:00:09.4]} 40... Nd3+ {[%clk 0:01:19.6]} 41. Kc3 {[%clk 0:00:08.4]}
41... Nxf2 {[%clk 0:01:20.5]} 0-1

[Event "Early-Titled-Tuesday-Blitz-October-10-2023"]
[Site "Chess.com"]
[Date "2023.10.10"]
[Round "2"]
[White "chesselephant"]
[Black "Willi_Skibbe"]
[Result "1-0"]
[WhiteElo "2525"]
[BlackElo "2320"]
[TimeControl "180+1"]
[EndTime "8:16:43 PDT"]
[Termination "chesselephant won by resignation"]

1. d4 {[%clk 0:03:00.9]} 1... d5 {[%clk 0:02:55]} 2. c4 {[%clk 0:03:00.9]} 2...
e6 {[%clk 0:02:54.4]} 3. Nc3 {[%clk 0:03:00.9]} 3... Nf6 {[%clk 0:02:54.3]} 4.
cxd5 {[%clk 0:03:01.1]} 4... exd5 {[%clk 0:02:54.2]} 5. Bg5 {[%clk 0:03:01.3]}
5... Be7 {[%clk 0:02:54.3]} 6. e3 {[%clk 0:03:01.8]} 6... h6 {[%clk 0:02:55]} 7.
Bh4 {[%clk 0:03:01.8]} 7... O-O {[%clk 0:02:55.4]} 8. Bd3 {[%clk 0:03:01.6]}
8... Re8 {[%clk 0:02:55.4]} 9. Nge2 {[%clk 0:03:01.9]} 9... c6 {[%clk
0:02:55.1]} 10. Qc2 {[%clk 0:03:02.1]} 10... Nbd7 {[%clk 0:02:54]} 11. O-O
{[%clk 0:03:02.2]} 11... Nh5 {[%clk 0:02:53.8]} 12. Bxe7 {[%clk 0:03:01.7]}
12... Qxe7 {[%clk 0:02:54.7]} 13. Rad1 {[%clk 0:03:01.6]} 13... Nb6 {[%clk
0:02:52.3]} 14. Rfe1 {[%clk 0:03:01.6]} 14... Bd7 {[%clk 0:02:32.7]} 15. a3
{[%clk 0:03:01.3]} 15... Nc8 {[%clk 0:02:30.3]} 16. b4 {[%clk 0:03:01.3]} 16...
a6 {[%clk 0:02:30.5]} 17. Na4 {[%clk 0:02:56.3]} 17... Nd6 {[%clk 0:02:27.6]}
18. Nc5 {[%clk 0:02:56.5]} 18... Nf6 {[%clk 0:02:23.4]} 19. Ng3 {[%clk
0:02:51.9]} 19... b5 {[%clk 0:02:19.4]} 20. Rc1 {[%clk 0:02:44.6]} 20... Nc4
{[%clk 0:02:15.7]} 21. Bxc4 {[%clk 0:02:32.5]} 21... bxc4 {[%clk 0:02:11.4]} 22.
e4 {[%clk 0:02:28.1]} 22... a5 {[%clk 0:01:57.5]} 23. e5 {[%clk 0:02:11.2]}
23... Nh7 {[%clk 0:01:55.3]} 24. Ra1 {[%clk 0:01:54.5]} 24... Nf8 {[%clk
0:01:46.9]} 25. Qd2 {[%clk 0:01:40.1]} 25... Reb8 {[%clk 0:01:33.8]} 26. f4
{[%clk 0:01:35]} 26... g6 {[%clk 0:01:26.8]} 27. f5 {[%clk 0:01:33.7]} 27...
Bxf5 {[%clk 0:01:15.2]} 28. Nxf5 {[%clk 0:01:26.3]} 28... gxf5 {[%clk
0:01:14.8]} 29. Qxh6 {[%clk 0:01:20.2]} 29... axb4 {[%clk 0:01:14.1]} 30. axb4
{[%clk 0:01:13]} 30... Rxa1 {[%clk 0:01:12.8]} 31. Rxa1 {[%clk 0:01:13.9]} 31...
Rxb4 {[%clk 0:01:11.1]} 32. h4 {[%clk 0:00:45.7]} 32... Rb8 {[%clk 0:01:06.9]}
33. Ra3 {[%clk 0:00:40.2]} 33... Rb1+ {[%clk 0:00:46.8]} 34. Kh2 {[%clk
0:00:37.8]} 34... Ng6 {[%clk 0:00:46.3]} 35. Ra8+ {[%clk 0:00:35.8]} 35... Nf8
{[%clk 0:00:43]} 36. Nd7 {[%clk 0:00:32.4]} 1-0

[Event "Early-Titled-Tuesday-Blitz-October-10-2023"]
[Site "Chess.com"]
[Date "2023.10.10"]
[Round "2"]
[White "erugee"]
[Black "RCone"]
[Result "0-1"]
[WhiteElo "2247"]
[BlackElo "2494"]
[TimeControl "180+1"]
[EndTime "8:16:43 PDT"]
[Termination "RCone won on time"]

1. e4 {[%clk 0:03:00.9]} 1... d6 {[%clk 0:03:00.9]} 2. d4 {[%clk 0:02:57.3]}
2... Nf6 {[%clk 0:03:01.4]} 3. Nc3 {[%clk 0:02:57.5]} 3... g6 {[%clk 0:03:01.1]}
4. Be2 {[%clk 0:02:58]} 4... Bg7 {[%clk 0:03:00]} 5. g4 {[%clk 0:02:58.6]} 5...
c6 {[%clk 0:02:59.9]} 6. g5 {[%clk 0:02:58.6]} 6... Nfd7 {[%clk 0:02:59]} 7. Be3
{[%clk 0:02:59.2]} 7... h5 {[%clk 0:02:53.9]} 8. gxh6 {[%clk 0:02:47.4]} 8...
Bxh6 {[%clk 0:02:53.4]} 9. Bxh6 {[%clk 0:02:47.7]} 9... Rxh6 {[%clk 0:02:54.2]}
10. Qd2 {[%clk 0:02:47.4]} 10... Rh8 {[%clk 0:02:52.8]} 11. O-O-O {[%clk
0:02:47.8]} 11... Qa5 {[%clk 0:02:48]} 12. Kb1 {[%clk 0:02:46.7]} 12... Nf6
{[%clk 0:02:45.1]} 13. h4 {[%clk 0:02:42.8]} 13... Nbd7 {[%clk 0:02:38.1]} 14.
f4 {[%clk 0:02:31]} 14... Nb6 {[%clk 0:02:30.5]} 15. e5 {[%clk 0:02:24.3]} 15...
Nfd5 {[%clk 0:02:25.8]} 16. Nxd5 {[%clk 0:02:13.6]} 16... Qxd2 {[%clk
0:02:26.5]} 17. Rxd2 {[%clk 0:01:41.8]} 17... Nxd5 {[%clk 0:02:26]} 18. exd6
{[%clk 0:01:32.4]} 18... exd6 {[%clk 0:02:19.9]} 19. Bc4 {[%clk 0:01:19.9]}
19... Be6 {[%clk 0:02:00.7]} 20. f5 {[%clk 0:00:42.6]} 20... Bxf5 {[%clk
0:01:53.2]} 21. Bxd5 {[%clk 0:00:38]} 21... cxd5 {[%clk 0:01:54.1]} 22. Nf3
{[%clk 0:00:36.1]} 22... Be4 {[%clk 0:01:48.2]} 23. Rh3 {[%clk 0:00:28.3]} 23...
Bxf3 {[%clk 0:01:46.2]} 24. Rxf3 {[%clk 0:00:26.8]} 24... Rxh4 {[%clk
0:01:46.7]} 25. c3 {[%clk 0:00:16]} 25... Ke7 {[%clk 0:01:40.3]} 26. Rdf2 {[%clk
0:00:13.6]} 26... f5 {[%clk 0:01:39.4]} 27. Kc2 {[%clk 0:00:13.9]} 27... Kf6
{[%clk 0:01:37.6]} 28. Kb3 {[%clk 0:00:13.7]} 28... Re8 {[%clk 0:01:23.8]} 29.
a4 {[%clk 0:00:10.1]} 29... Ree4 {[%clk 0:01:17.9]} 30. a5 {[%clk 0:00:10.5]}
30... f4 {[%clk 0:01:12.9]} 31. Kb4 {[%clk 0:00:09.3]} 31... Kf5 {[%clk
0:01:10.8]} 32. Kb5 {[%clk 0:00:06.2]} 32... g5 {[%clk 0:01:11.1]} 33. a6 {[%clk
0:00:03.5]} 33... bxa6+ {[%clk 0:01:08.3]} 34. Kxa6 {[%clk 0:00:04.1]} 34... Rh7
{[%clk 0:01:06.7]} 0-1

[Event "Early-Titled-Tuesday-Blitz-October-10-2023"]
[Site "Chess.com"]
[Date "2023.10.10"]
[Round "2"]
[White "MAGMAchess02"]
[Black "Journey_to_GrandMaster_YT"]
[Result "0-1"]
[WhiteElo "2361"]
[BlackElo "2616"]
[TimeControl "180+1"]
[EndTime "8:16:45 PDT"]
[Termination "Journey_to_GrandMaster_YT won by resignation"]

1. Nf3 {[%clk 0:02:55.7]} 1... d6 {[%clk 0:03:00.9]} 2. d4 {[%clk 0:02:54.8]}
2... Nf6 {[%clk 0:03:01.8]} 3. Nc3 {[%clk 0:02:54.3]} 3... Nbd7 {[%clk
0:03:02.7]} 4. e4 {[%clk 0:02:54.1]} 4... e5 {[%clk 0:03:03.6]} 5. Be2 {[%clk
0:02:53.1]} 5... Be7 {[%clk 0:03:04.1]} 6. O-O {[%clk 0:02:52.6]} 6... O-O
{[%clk 0:03:04.7]} 7. a4 {[%clk 0:02:51]} 7... a5 {[%clk 0:03:03.9]} 8. Re1
{[%clk 0:02:50.2]} 8... c6 {[%clk 0:03:04.1]} 9. h3 {[%clk 0:02:47.9]} 9... Re8
{[%clk 0:03:04.6]} 10. dxe5 {[%clk 0:02:41.4]} 10... Nxe5 {[%clk 0:03:03.4]} 11.
Nxe5 {[%clk 0:02:36.3]} 11... dxe5 {[%clk 0:03:04.3]} 12. Qxd8 {[%clk
0:02:36.4]} 12... Rxd8 {[%clk 0:02:59.4]} 13. Be3 {[%clk 0:02:36.9]} 13... Bb4
{[%clk 0:02:57.3]} 14. f3 {[%clk 0:02:16.8]} 14... Be6 {[%clk 0:02:53.9]} 15.
Red1 {[%clk 0:02:11.2]} 15... Nd7 {[%clk 0:02:52.8]} 16. Kf2 {[%clk 0:02:02.6]}
16... Nc5 {[%clk 0:02:49.7]} 17. Na2 {[%clk 0:01:40.5]} 17... Rxd1 {[%clk
0:02:28.2]} 18. Bxd1 {[%clk 0:01:40.1]} 18... Nxa4 {[%clk 0:02:08.7]} 19. c3
{[%clk 0:01:39.2]} 19... Nxb2 {[%clk 0:02:06.7]} 20. Nxb4 {[%clk 0:01:25.5]}
20... Nxd1+ {[%clk 0:02:04.5]} 21. Rxd1 {[%clk 0:01:21.4]} 21... axb4 {[%clk
0:02:03.9]} 22. cxb4 {[%clk 0:01:22.3]} 22... f6 {[%clk 0:01:58.8]} 23. Bb6
{[%clk 0:01:13.9]} 23... Ra2+ {[%clk 0:01:56]} 24. Kg3 {[%clk 0:01:12.7]} 24...
Rb2 {[%clk 0:01:52.8]} 25. Bc5 {[%clk 0:01:02.1]} 25... Kf7 {[%clk 0:01:47.3]}
26. Rd8 {[%clk 0:00:58.1]} 26... Kg6 {[%clk 0:01:40.6]} 27. Rb8 {[%clk
0:00:54.2]} 27... b5 {[%clk 0:01:37.1]} 28. Rb6 {[%clk 0:00:43.7]} 28... Bc4
{[%clk 0:01:35.9]} 29. Rxc6 {[%clk 0:00:35.9]} 29... Bf1 {[%clk 0:01:35.1]} 30.
Bf2 {[%clk 0:00:35.6]} 30... h5 {[%clk 0:01:33.9]} 31. h4 {[%clk 0:00:36.1]}
31... Rxb4 {[%clk 0:01:29.4]} 32. Rb6 {[%clk 0:00:27.4]} 32... Rb2 {[%clk
0:01:28]} 33. Rb7 {[%clk 0:00:25.1]} 33... b4 {[%clk 0:01:26.6]} 34. Rc7 {[%clk
0:00:16.4]} 34... b3 {[%clk 0:01:24.4]} 35. Rc1 {[%clk 0:00:16.9]} 35... Bd3
{[%clk 0:01:21.2]} 36. Rd1 {[%clk 0:00:16.3]} 36... Bc2 {[%clk 0:01:19.1]} 37.
Rd2 {[%clk 0:00:12]} 37... Ra2 {[%clk 0:01:18.1]} 38. Be3 {[%clk 0:00:06.2]}
38... b2 {[%clk 0:01:16.6]} 39. Rxc2 {[%clk 0:00:06.1]} 39... b1=Q {[%clk
0:01:16.2]} 0-1

[Event "Early-Titled-Tuesday-Blitz-October-10-2023"]
[Site "Chess.com"]
[Date "2023.10.10"]
[Round "2"]
[White "ErikRonka"]
[Black "IngOscarArdila"]
[Result "1-0"]
[WhiteElo "2523"]
[BlackElo "2319"]
[TimeControl "180+1"]
[EndTime "8:16:50 PDT"]
[Termination "ErikRonka won by resignation"]

1. e4 {[%clk 0:02:55.2]} 1... e5 {[%clk 0:02:58.7]} 2. Nf3 {[%clk 0:02:53.5]}
2... Nf6 {[%clk 0:02:58.9]} 3. Nc3 {[%clk 0:02:53.1]} 3... Nc6 {[%clk
0:02:58.6]} 4. d4 {[%clk 0:02:52.1]} 4... exd4 {[%clk 0:02:56]} 5. Nxd4 {[%clk
0:02:53]} 5... Bb4 {[%clk 0:02:56]} 6. Nxc6 {[%clk 0:02:52.8]} 6... bxc6 {[%clk
0:02:56.5]} 7. Bd3 {[%clk 0:02:52.2]} 7... d5 {[%clk 0:02:56.6]} 8. Bd2 {[%clk
0:02:50.3]} 8... O-O {[%clk 0:02:55.2]} 9. O-O {[%clk 0:02:50.3]} 9... Rb8
{[%clk 0:02:52]} 10. Qc1 {[%clk 0:02:47.3]} 10... Re8 {[%clk 0:02:48.6]} 11.
exd5 {[%clk 0:02:46.4]} 11... cxd5 {[%clk 0:02:48.5]} 12. Re1 {[%clk 0:02:43.9]}
12... Rxe1+ {[%clk 0:02:45.6]} 13. Qxe1 {[%clk 0:02:43.8]} 13... c6 {[%clk
0:02:45.1]} 14. a3 {[%clk 0:02:31.9]} 14... Bd6 {[%clk 0:02:41.4]} 15. b4 {[%clk
0:02:32.5]} 15... Bd7 {[%clk 0:02:36.9]} 16. h3 {[%clk 0:02:30.4]} 16... Qe8
{[%clk 0:02:36.4]} 17. Be3 {[%clk 0:02:22]} 17... Qe5 {[%clk 0:02:18.3]} 18. f4
{[%clk 0:02:17.6]} 18... Qe8 {[%clk 0:02:13.7]} 19. Bxa7 {[%clk 0:02:15.9]}
19... Bxf4 {[%clk 0:02:05]} 20. Bxb8 {[%clk 0:02:13.5]} 20... Qxb8 {[%clk
0:02:04.4]} 21. Ne2 {[%clk 0:01:59.8]} 21... Qb6+ {[%clk 0:01:36]} 22. Kh1
{[%clk 0:01:57.4]} 22... Be5 {[%clk 0:01:35.9]} 23. Rd1 {[%clk 0:01:40.7]} 23...
Qe3 {[%clk 0:01:31.9]} 24. Qg1 {[%clk 0:01:33.7]} 24... Qh6 {[%clk 0:01:27.6]}
25. Qf2 {[%clk 0:01:29.2]} 25... Ng4 {[%clk 0:01:06.7]} 26. Qa7 {[%clk
0:01:25.6]} 26... Be8 {[%clk 0:00:51.5]} 27. Qe7 {[%clk 0:01:07.2]} 27... Nf2+
{[%clk 0:00:27.8]} 28. Kg1 {[%clk 0:01:07.2]} 28... Nxh3+ {[%clk 0:00:07.1]} 29.
Kf1 {[%clk 0:00:54.6]} 29... Bd7 {[%clk 0:00:05.3]} 30. Qd8+ {[%clk 0:00:52.9]}
1-0

[Event "Early-Titled-Tuesday-Blitz-October-10-2023"]
[Site "Chess.com"]
[Date "2023.10.10"]
[Round "2"]
[White "KatakuriDono"]
[Black "Zq1"]
[Result "1-0"]
[WhiteElo "2342"]
[BlackElo "2508"]
[TimeControl "180+1"]
[EndTime "8:16:51 PDT"]
[Termination "KatakuriDono won by resignation"]

1. d4 {[%clk 0:03:00.9]} 1... Nf6 {[%clk 0:02:58.9]} 2. c4 {[%clk 0:03:01.3]}
2... a6 {[%clk 0:02:58.7]} 3. Nc3 {[%clk 0:03:01]} 3... c5 {[%clk 0:02:58.9]} 4.
d5 {[%clk 0:02:59]} 4... b5 {[%clk 0:02:58.4]} 5. Qc2 {[%clk 0:02:53]} 5... b4
{[%clk 0:02:56.8]} 6. Nd1 {[%clk 0:02:51.8]} 6... d6 {[%clk 0:02:56.8]} 7. e4
{[%clk 0:02:51.8]} 7... g6 {[%clk 0:02:56.3]} 8. Nf3 {[%clk 0:02:51.7]} 8... Bg7
{[%clk 0:02:56.3]} 9. Bd3 {[%clk 0:02:49.5]} 9... O-O {[%clk 0:02:56]} 10. h3
{[%clk 0:02:49.5]} 10... a5 {[%clk 0:02:56]} 11. Bf4 {[%clk 0:02:44.3]} 11... a4
{[%clk 0:02:55.5]} 12. a3 {[%clk 0:02:42.4]} 12... bxa3 {[%clk 0:02:45.4]} 13.
Rxa3 {[%clk 0:02:43.3]} 13... Na6 {[%clk 0:02:44.5]} 14. Qd2 {[%clk 0:02:33.8]}
14... Nb4 {[%clk 0:02:42.7]} 15. Bb1 {[%clk 0:02:33.9]} 15... Ba6 {[%clk
0:02:38.3]} 16. Ne3 {[%clk 0:02:19.8]} 16... Nh5 {[%clk 0:02:25.8]} 17. Bh2
{[%clk 0:02:15.3]} 17... e5 {[%clk 0:02:18.5]} 18. Rxa4 {[%clk 0:02:05.6]} 18...
Nf4 {[%clk 0:02:13.3]} 19. O-O {[%clk 0:02:01.8]} 19... Qd7 {[%clk 0:02:09.1]}
20. Ra1 {[%clk 0:01:50.4]} 20... f5 {[%clk 0:02:08.9]} 21. Ng5 {[%clk
0:01:38.4]} 21... Bh6 {[%clk 0:01:58.5]} 22. h4 {[%clk 0:01:26.8]} 22... Qe7
{[%clk 0:01:56.4]} 23. exf5 {[%clk 0:01:21.5]} 23... Bxg5 {[%clk 0:01:55.6]} 24.
hxg5 {[%clk 0:01:18.4]} 24... Qxg5 {[%clk 0:01:55.6]} 25. fxg6 {[%clk
0:01:03.4]} 25... Bxc4 {[%clk 0:01:46]} 26. gxh7+ {[%clk 0:01:01.8]} 26... Kh8
{[%clk 0:01:43.3]} 27. Rxa8 {[%clk 0:00:56.2]} 27... Rxa8 {[%clk 0:01:31.6]} 28.
Bxf4 {[%clk 0:00:56.2]} 28... Qxf4 {[%clk 0:01:26.2]} 29. Nxc4 {[%clk
0:00:56.3]} 29... Qxc4 {[%clk 0:01:26.2]} 30. Qh6 {[%clk 0:00:52.8]} 30... Qf4
{[%clk 0:01:24.2]} 31. Qxd6 {[%clk 0:00:44.4]} 31... Rf8 {[%clk 0:01:20.1]} 32.
Qxc5 {[%clk 0:00:41.4]} 32... Rf6 {[%clk 0:01:09.9]} 33. d6 {[%clk 0:00:39]}
33... Rh6 {[%clk 0:01:02.8]} 34. Qc8+ {[%clk 0:00:39]} 34... Kg7 {[%clk
0:01:01.8]} 35. Qd7+ {[%clk 0:00:32.8]} 35... Qf7 {[%clk 0:00:51.6]} 36. Qxf7+
{[%clk 0:00:27.2]} 36... Kxf7 {[%clk 0:00:51.2]} 37. Rc1 {[%clk 0:00:25.4]} 1-0

[Event "Early-Titled-Tuesday-Blitz-October-10-2023"]
[Site "Chess.com"]
[Date "2023.10.10"]
[Round "2"]
[White "Triumphmate"]
[Black "microbear"]
[Result "1-0"]
[WhiteElo "2494"]
[BlackElo "2241"]
[TimeControl "180+1"]
[EndTime "8:16:51 PDT"]
[Termination "Triumphmate won by resignation"]

1. e4 {[%clk 0:02:36.8]} 1... c5 {[%clk 0:03:00.9]} 2. Nf3 {[%clk 0:02:37.1]}
2... Nc6 {[%clk 0:02:50.1]} 3. d4 {[%clk 0:02:38]} 3... cxd4 {[%clk 0:02:43.3]}
4. Nxd4 {[%clk 0:02:38.9]} 4... Nf6 {[%clk 0:02:41.7]} 5. Nc3 {[%clk 0:02:38.9]}
5... d6 {[%clk 0:02:37.8]} 6. f4 {[%clk 0:02:34.9]} 6... Bd7 {[%clk 0:02:30.6]}
7. Nf3 {[%clk 0:02:35]} 7... e5 {[%clk 0:02:28.5]} 8. Bd3 {[%clk 0:02:35.9]}
8... Be7 {[%clk 0:02:28.1]} 9. O-O {[%clk 0:02:35.9]} 9... Ng4 {[%clk
0:02:25.6]} 10. Kh1 {[%clk 0:02:32.7]} 10... exf4 {[%clk 0:02:20.1]} 11. Bxf4
{[%clk 0:02:32.4]} 11... Nge5 {[%clk 0:02:20.8]} 12. Qe1 {[%clk 0:02:28.6]}
12... Be6 {[%clk 0:02:08.8]} 13. Rd1 {[%clk 0:02:23.8]} 13... O-O {[%clk
0:02:00.3]} 14. Nd5 {[%clk 0:02:23.9]} 14... Re8 {[%clk 0:01:52.8]} 15. Nxe7+
{[%clk 0:02:23.2]} 15... Qxe7 {[%clk 0:01:53.7]} 16. Qg3 {[%clk 0:02:24.1]}
16... f6 {[%clk 0:01:46.7]} 17. a3 {[%clk 0:02:15.5]} 17... Rad8 {[%clk
0:01:45.1]} 18. Bb5 {[%clk 0:02:14.3]} 18... a6 {[%clk 0:01:41.8]} 19. Bxc6
{[%clk 0:02:06.1]} 19... bxc6 {[%clk 0:01:38.7]} 20. Nd4 {[%clk 0:02:06.7]}
20... Bd7 {[%clk 0:01:29.3]} 21. h3 {[%clk 0:02:05.2]} 21... c5 {[%clk
0:01:26.7]} 22. Ne2 {[%clk 0:02:03.4]} 22... Bc6 {[%clk 0:01:23.6]} 23. Nc3
{[%clk 0:02:02.4]} 23... Kh8 {[%clk 0:01:18.1]} 24. Nd5 {[%clk 0:02:01.9]} 24...
Qb7 {[%clk 0:01:06.8]} 25. b3 {[%clk 0:01:58.5]} 25... c4 {[%clk 0:01:05.4]} 26.
b4 {[%clk 0:01:56.1]} 26... a5 {[%clk 0:01:01.1]} 27. bxa5 {[%clk 0:01:52.7]}
27... Qa7 {[%clk 0:00:54.9]} 28. Be3 {[%clk 0:01:46.4]} 28... Qxa5 {[%clk
0:00:49]} 29. Bb6 {[%clk 0:01:46.3]} 29... Qa6 {[%clk 0:00:43.7]} 30. Bxd8
{[%clk 0:01:45.7]} 30... Rxd8 {[%clk 0:00:44.3]} 31. Nc7 {[%clk 0:01:40.1]}
31... Qb7 {[%clk 0:00:41]} 32. Ne6 {[%clk 0:01:40.3]} 32... Re8 {[%clk
0:00:39.5]} 33. Rxd6 {[%clk 0:01:39]} 33... Bxe4 {[%clk 0:00:33.4]} 34. Rf4
{[%clk 0:01:37.7]} 34... Bg6 {[%clk 0:00:31.3]} 35. h4 {[%clk 0:01:32.1]} 35...
Qb1+ {[%clk 0:00:29.1]} 36. Kh2 {[%clk 0:01:31.8]} 36... Qxc2 {[%clk 0:00:27.6]}
37. h5 {[%clk 0:01:31.2]} 37... Nd3 {[%clk 0:00:19.5]} 38. Rh4 {[%clk
0:01:21.5]} 1-0

[Event "Early-Titled-Tuesday-Blitz-October-10-2023"]
[Site "Chess.com"]
[Date "2023.10.10"]
[Round "2"]
[White "chenrip"]
[Black "alexrustemov"]
[Result "1/2-1/2"]
[WhiteElo "2495"]
[BlackElo "2858"]
[TimeControl "180+1"]
[EndTime "8:16:53 PDT"]
[Termination "Game drawn by repetition"]

1. e4 {[%clk 0:02:35.2]} 1... e6 {[%clk 0:02:59.7]} 2. d4 {[%clk 0:02:34.8]}
2... d5 {[%clk 0:03:00.2]} 3. Nc3 {[%clk 0:02:35]} 3... dxe4 {[%clk 0:03:00.5]}
4. Nxe4 {[%clk 0:02:34.9]} 4... Bd7 {[%clk 0:03:01.1]} 5. Be2 {[%clk 0:02:34.6]}
5... Bc6 {[%clk 0:03:01.6]} 6. Bf3 {[%clk 0:02:35.3]} 6... Nf6 {[%clk
0:03:00.7]} 7. Qd3 {[%clk 0:02:32.6]} 7... Nxe4 {[%clk 0:02:55.8]} 8. Bxe4
{[%clk 0:02:32.4]} 8... Bxe4 {[%clk 0:02:55.8]} 9. Qxe4 {[%clk 0:02:33]} 9...
Qd5 {[%clk 0:02:55.5]} 10. Qxd5 {[%clk 0:02:32.5]} 10... exd5 {[%clk 0:02:56]}
11. Nf3 {[%clk 0:02:31.7]} 11... Bd6 {[%clk 0:02:51.3]} 12. O-O {[%clk
0:02:28.8]} 12... O-O {[%clk 0:02:50.5]} 13. Re1 {[%clk 0:02:28.9]} 13... Nc6
{[%clk 0:02:46.4]} 14. c3 {[%clk 0:02:28.8]} 14... Rfe8 {[%clk 0:02:45.7]} 15.
Bg5 {[%clk 0:02:27]} 15... Na5 {[%clk 0:02:28.6]} 16. b3 {[%clk 0:02:25.7]}
16... Ba3 {[%clk 0:02:24]} 17. Rab1 {[%clk 0:02:15.3]} 17... Bf8 {[%clk
0:02:14.8]} 18. Bf4 {[%clk 0:02:13.2]} 18... c6 {[%clk 0:02:11.4]} 19. Kf1
{[%clk 0:02:10.2]} 19... f6 {[%clk 0:02:10.5]} 20. Bc7 {[%clk 0:01:59.3]} 20...
b6 {[%clk 0:02:09.5]} 21. Rxe8 {[%clk 0:01:54.1]} 21... Rxe8 {[%clk 0:02:08.8]}
22. Re1 {[%clk 0:01:54.5]} 22... Rc8 {[%clk 0:02:08.9]} 23. Bf4 {[%clk 0:01:54]}
23... Kf7 {[%clk 0:02:07.9]} 24. g4 {[%clk 0:01:52.3]} 24... Nb7 {[%clk
0:01:59.8]} 25. h4 {[%clk 0:01:50.2]} 25... Nd8 {[%clk 0:01:59.3]} 26. g5 {[%clk
0:01:37]} 26... Ne6 {[%clk 0:01:58.9]} 27. Bd2 {[%clk 0:01:36.9]} 27... Bd6
{[%clk 0:01:57.4]} 28. h5 {[%clk 0:01:35.3]} 28... fxg5 {[%clk 0:01:53.7]} 29.
Nxg5+ {[%clk 0:01:33.1]} 29... Nxg5 {[%clk 0:01:53.3]} 30. Bxg5 {[%clk
0:01:33.7]} 30... Re8 {[%clk 0:01:40.9]} 31. Rxe8 {[%clk 0:01:32.9]} 31... Kxe8
{[%clk 0:01:41.8]} 32. Ke2 {[%clk 0:01:32.6]} 32... Kf7 {[%clk 0:01:42.2]} 33.
Kf3 {[%clk 0:01:31.6]} 33... Ke6 {[%clk 0:01:42.4]} 34. Kg4 {[%clk 0:01:29.7]}
34... Ba3 {[%clk 0:01:40.8]} 35. f4 {[%clk 0:01:19.3]} 35... g6 {[%clk
0:01:35.7]} 36. hxg6 {[%clk 0:01:16.8]} 36... hxg6 {[%clk 0:01:36.6]} 37. Bh4
{[%clk 0:01:17]} 37... Bc1 {[%clk 0:01:27.4]} 38. Be1 {[%clk 0:01:16.7]} 38...
Be3 {[%clk 0:01:18.5]} 39. Kf3 {[%clk 0:01:11.5]} 39... Bc1 {[%clk 0:01:17.2]}
40. Kg4 {[%clk 0:01:10.2]} 40... a6 {[%clk 0:01:14.4]} 41. Kg5 {[%clk
0:01:06.3]} 41... Kf7 {[%clk 0:01:12.3]} 42. Kg4 {[%clk 0:01:05.3]} 42... Kf6
{[%clk 0:01:11.5]} 43. Bh4+ {[%clk 0:01:04.4]} 43... Ke6 {[%clk 0:01:10.8]} 44.
Be1 {[%clk 0:01:05]} 44... b5 {[%clk 0:00:56.3]} 45. b4 {[%clk 0:01:02.2]} 45...
Kf6 {[%clk 0:00:53.6]} 46. Bh4+ {[%clk 0:01:01.7]} 46... Ke6 {[%clk 0:00:51.7]}
47. Be1 {[%clk 0:01:02.4]} 47... Kf6 {[%clk 0:00:41.5]} 48. Bh4+ {[%clk
0:01:01.8]} 48... Kf7 {[%clk 0:00:42]} 49. Be1 {[%clk 0:01:02.2]} 49... Ba3
{[%clk 0:00:38]} 50. Bd2 {[%clk 0:00:59.4]} 50... Kf6 {[%clk 0:00:36.9]} 51. Be1
{[%clk 0:00:59.1]} 51... Bc1 {[%clk 0:00:36.4]} 1/2-1/2